Cogmind - Beta 12 X4 @@@ ROGUE MODE // 2022.12.03 @ 11:38:25 Player: youngster Result: Destroyed by H-55 Commando with Gauss Rifle Performance ------------- Evolutions (1) 500 Regions Visited (6) 1200 Robots Destroyed (109) 545 Value Destroyed (2211) 2211 Prototype IDs (21) 420 Alien Tech Used (0) 0 Bonus (231) 231 TOTAL SCORE: 5107 Bonus ------- High Alert Combat Kills 168 Follower Combat Kills 93 Friendly Fire -30 Cogmind --------- Core Integrity 0/400 Matter 230/300 Energy 310/310 System Corruption 5% Temperature Warning (324) Movement Walking (270) Ox2 Location -8/Mines Parts ------- > --- POWER (1) -------- Reinforced Fission Core > --- PROPULSION (2) --- Makeshift Leg Advanced Myomer Leg > --- UTILITY (3) ------ Huge Storage Unit Experimental Targeting Computer Experimental Core Analyzer > --- WEAPON (3) ------- Dispersion Rifle Autogun > --- INVENTORY (25) --- Light Ion Engine Experimental Power Amplifier Experimental Heat Sink High-capacity Storage Unit Experimental Energy Well (600) Experimental Sensor Array Improved Terrain Scanner Advanced Weapon Cycler Advanced Transmission Jammer Hardened Light Armor Plating 8R-AWN's Armor/EX Long-range Tractor Beam Thief Drone Bay (0/3) Light EM Pulse Cannon Missile Launcher Missile Launcher Peak State ------------ > --- POWER ------------ Makeshift Power Source > --- PROPULSION ------- Makeshift Leg Advanced Myomer Leg > --- UTILITY ---------- Huge Storage Unit Experimental Core Analyzer Hardened Medium Armor Plating > --- WEAPON ----------- Improved Assault Rifle Improved Assault Rifle 8R-AWN's Boregun > --- INVENTORY -------- Reinforced Fission Core Makeshift Leg Makeshift Leg Experimental Heat Sink High-capacity Matter Pod Experimental Sensor Array Improved Terrain Scanner Experimental Targeting Computer Advanced Weapon Cycler Advanced Transmission Jammer Hardened Light Armor Plating 8R-AWN's Armor/EX Long-range Tractor Beam Thief Drone Bay AS-neutralizer No. 17b Light EM Pulse Cannon Autogun Improved Assault Rifle Missile Launcher Missile Launcher Deploy-a-Sentry [Rating: 58] Favorites ----------- Power Reinforced Ion Engine Engine Reinforced Ion Engine Power Core Nuclear Core Propulsion Light Treads Treads Light Treads Leg Makeshift Leg Wheel Compact Wheel Utility High-capacity Storage Unit Device Improved Terrain Scanner Storage High-capacity Storage Unit Processor Experimental Core Analyzer Protection Hardened Medium Armor Plating Weapon Improved Assault Rifle Energy Gun Medium Laser Energy Cannon Light EM Pulse Cannon Ballistic Gun Improved Assault Rifle Launcher Missile Launcher Slashing Weapon Axe Special Melee Weapon Improved Datajack Build | -11 -10 -10 -9 -9 -9 -8 ------- Run | Scr Mat Min Mat Min Exi Min Slots Evolved 2 | . . . 2 . . . Power . | . . . . . . . Propulsion . | . . . . . . . Utility 1 | . . . 1 . . . Weapon 1 | . . . 1 . . . Parts Attached 141 | 6 16 19 49 12 25 14 Power 10 | 1 1 . 3 . 4 1 Engine 8 | 1 1 . 3 . 3 . Core 2 | . . . . . 1 1 Reactor . | . . . . . . . Propulsion 26 | 2 . 1 12 . 8 3 Treads 14 | 2 . . 9 . 3 . Leg 7 | . . . . . 4 3 Wheel 5 | . . 1 3 . 1 . Hover . | . . . . . . . Flight . | . . . . . . . Utility 41 | 1 4 4 13 7 6 6 Device 14 | . 1 3 5 4 1 . Storage 8 | 1 2 . 1 . 2 2 Processor 2 | . . . . . . 2 Hackware . | . . . . . . . Protection 17 | . 1 1 7 3 3 2 Artifact . | . . . . . . . Weapon 64 | 2 11 14 21 5 7 4 Energy Gun 8 | 1 3 3 . . . 1 Energy Cannon 1 | . . . . . . 1 Ballistic Gun 30 | 1 3 4 13 2 5 2 Ballistic Cannon . | . . . . . . . Launcher 17 | . 5 2 6 2 2 . Special Weapon . | . . . . . . . Impact Weapon . | . . . . . . . Slashing Weapon 1 | . . 1 . . . . Piercing Weapon . | . . . . . . . Special Melee Weapon 7 | . . 4 2 1 . . Unidentified Prototypes 4 | . 1 1 . 1 . 1 Parts Lost 25 | . 1 5 . . 11 8 Power 4 | . 1 1 . . 1 1 Propulsion 7 | . . 1 . . 4 2 Utility 4 | . . . . . 2 2 Weapon 10 | . . 3 . . 4 3 Highest Loss Streak 7 | . 1 3 . . 5 7 To Critical Strikes 6 | . . . . . 5 1 Average Slot Usage (%) 96 | . 98 92 99 100 98 82 Engine 10 | . 13 10 10 11 7 3 Core 1 | . . . . . 3 6 Treads 14 | . 28 17 12 11 7 . Leg 3 | . . . . . 7 19 Wheel 6 | . . 6 9 11 6 . Device 6 | . 11 7 4 8 4 . Storage 12 | . 14 14 11 11 12 6 Processor 1 | . . . . . . 17 Protection 10 | . 1 6 17 13 15 6 Energy Gun 1 | . 5 2 . . . 4 Ballistic Gun 26 | . 21 18 32 28 28 17 Launcher 1 | . . 1 . 3 1 . Special Melee Weapon 1 | . . 3 . . 2 . Naked Turns . | . . . . . . . Heaviest Build 141 | 14 55 55 118 118 141 110 Greatest Support 50 | 40 40 40 46 16 50 50 Greatest Overweight (x) 7 | . 1 3 7 7 6 2 Average Overweight (x) 3 | . . 2 4 6 3 1 Largest Inventory Capacity 25 | 8 20 20 25 25 25 25 Average Capacity 20 | 7 17 20 21 25 22 17 Most Carried 25 | 4 20 20 25 25 25 25 Average Carried 19 | 2 16 19 21 24 19 12 Final Capacity 25 | 8 20 20 25 25 25 25 Final Carried 25 | 4 20 19 25 25 25 18 Class Distribution -------------------- 51% | Mutant 27% | Tank 15% | Scavenger-Tank 5% | Scavenger-Mutant Dominant Class ---------------- Mutant | -10/Materials Mutant | -10/Mines Tank | -9/Materials Tank | -9/Mines Mutant | -9/Exiles Scavenger-Mutant | -8/Mines Resources | -11 -10 -10 -9 -9 -9 -8 ----------- Run | Scr Mat Min Mat Min Exi Min Matter Collected 4255 | 230 586 348 1209 205 1239 438 Remotely . | . . . . . . . Salvage Created 3661 | 20 732 243 1996 265 315 90 Parts 250 | 4 28 15 130 15 54 4 Haulers Intercepted 8 | . 2 . 6 . . . Recyclers Shooed 10 | . 4 . 2 . . 4 Parts Field Recycled . | . . . . . . . Retrieved Matter . | . . . . . . . Parts Self-Destructed . | . . . . . . . Prevented . | . . . . . . . Kills | -11 -10 -10 -9 -9 -9 -8 ------- Run | Scr Mat Min Mat Min Exi Min Combat Hostiles Destroyed 77 | . 20 12 30 6 8 1 Guns 49 | . 9 5 27 5 2 1 AOE 27 | . 10 7 3 1 6 . Classes Destroyed 15 | 1 6 1 5 . 2 . Worker 6 | . 1 2 3 . . . Builder 7 | . 1 . 5 . . 1 Tunneler 2 | 1 . . . 1 . . Hauler 8 | . 2 . 6 . . . Recycler 8 | . 2 1 4 . . 1 Operator 2 | . . . 2 . . . Turret 1 | . . . . . 1 . Watcher 2 | . . . 2 . . . Swarmer 19 | . 6 6 6 . . 1 Grunt 31 | . 14 . 12 5 . . Brawler 1 | . . . 1 . . . Duelist 1 | . . . 1 . . . Sentry 11 | . . . 10 1 . . Zionite 7 | . . . . . 7 . Assembled 13 | . . 6 . . 7 . Best Kill Streak 10 | 1 7 4 10 3 10 1 Combat Bots Only 7 | . 7 3 5 3 7 1 Max Kills in Single Turn 3 | 1 3 3 3 1 3 1 Gunslinging 1 | . 1 . . . . . Exploded 3 | . 3 2 2 1 2 . Melee . | . . . . . . . Uniques/NPCs Destroyed 5 | . . . . . 4 1 EX-HEX (-9/Exiles) 8R-AWN (-9/Exiles) EX-DEC (-9/Exiles) EX-BIN (-9/Exiles) 7V-RTL (-8/Mines) Combat | -11 -10 -10 -9 -9 -9 -8 -------- Run | Scr Mat Min Mat Min Exi Min Damage Taken 5370 | . 333 682 757 87 2334 1177 Core 563 | . 21 138 125 . 149 130 Absorbed by Shields . | . . . . . . . Regen/Repaired (Parts) 199 | . . . 199 . . . Core Remaining (%) 68 | 100 . 36 . . . . Volleys Fired 262 | 4 45 27 82 12 62 30 Largest 3 | 2 2 2 3 3 3 3 Hottest 111 | 70 70 68 69 69 76 111 Shots Fired 637 | 8 81 49 230 25 160 84 Gun 599 | 8 72 44 222 21 149 83 Cannon 1 | . . . . . . 1 Launcher 37 | . 9 5 8 4 11 . Special . | . . . . . . . Kinetic 542 | 4 38 31 222 21 149 77 Thermal 37 | 4 27 . . . . 6 Explosive 37 | . 9 5 8 4 11 . Electromagnetic 21 | . 7 13 . . . 1 Robot Hit Streak 18 | 2 7 7 16 10 18 8 Robot Miss Streak 5 | 2 3 5 2 1 3 3 Penetration Max 1 | . . . . . 1 . Secondary Targets 6 | . 1 . 3 . 1 1 Max Gunslinging Chain 1 | . 1 . 1 . 1 1 Shots Hit Robots 426 | 4 52 30 150 13 120 57 Core Hits 237 | 2 45 24 81 13 48 24 Critical Kills 2 | . . . 1 . 1 . Critical Parts Destroyed 3 | . . . . . 2 1 Critical Strikes 10 | . 1 . 1 . 4 4 Burn 1 | . 1 . . . . . Destroy 9 | . . . 1 . 4 4 Melee Attacks 8 | . . 3 1 . 4 . Impact . | . . . . . . . Slashing 3 | . . 3 . . . . Piercing . | . . . . . . . Sneak Attacks 4 | . . . . . 4 . Combat Hostiles . | . . . . . . . Follow-up Attacks . | . . . . . . . Damage Inflicted 8922 | 50 1388 707 2800 312 2740 925 Guns 6187 | 50 588 411 2297 211 1705 925 Cannons . | . . . . . . . Explosions 2692 | . 798 296 503 101 994 . Melee . | . . . . . . . Ramming 43 | . 2 . . . 41 . Kinetic 5670 | 12 273 301 2297 211 1705 871 Thermal 436 | 38 287 . 57 . . 54 Explosive 2588 | . 751 296 446 101 994 . Electromagnetic 185 | . 75 110 . . . . Impact . | . . . . . . . Slashing . | . . . . . . . Piercing . | . . . . . . . Highest Corruption 8 | . . 8 . . 5 5 Average Corruption 5 | . . 8 . . 4 5 Corruption Purged . | . . . . . . . Corruption Blocked . | . . . . . . . Effects 45 | . . 11 . . 21 13 Message Errors 17 | . . 3 . . 9 5 Matter Fused 10 | . . 2 . . 4 4 Heat Flow Errors 5 | . . 2 . . 3 . Energy Discharges 4 | . . 2 . . . 2 Data Loss (minor) 8 | . . 2 . . 5 1 Misfires 1 | . . . . . . 1 Overload Shots . | . . . . . . . Overflow Damage 109 | . . 3 66 . 40 . Projectiles . | . . . . . . . Explosions 109 | . . 3 66 . 40 . Melee . | . . . . . . . Knockbacks . | . . . . . . . Impact . | . . . . . . . Kinetic . | . . . . . . . Secondary . | . . . . . . . Self-Inflicted Damage 154 | . 38 63 53 . . . Shots 5 | . 1 2 2 . . . Rammed 9 | . 1 . . . 8 . Targets Rammed 9 | . 1 . . . 8 . Kicked . | . . . . . . . Crushed . | . . . . . . . Highest Temperature 357 | 18 144 234 357 183 318 340 Average Temperature 82 | 10 40 97 69 63 111 122 Received Heat Transfer 748 | . 129 100 291 48 . 180 Effects 5 | . . . 4 . . 1 Shutdowns 1 | . . . 1 . . . Interference 3 | . . . 3 . . . Matter Decay 1 | . . . . . . 1 Siege Activations . | . . . . . . . Robots Corrupted . | . . . . . . . Combat Hostiles . | . . . . . . . Parts Fried . | . . . . . . . Impact Corruptions . | . . . . . . . Robots Melted 1 | . 1 . . . . . Combat Hostiles 1 | . 1 . . . . . Parts Melted 4 | . 1 . 2 1 . . Heat Transferred 1062 | 111 827 . 50 . . 74 Parts Sabotaged . | . . . . . . . Parts Stolen . | . . . . . . . Parts Stripped . | . . . . . . . Power Chain Reactions 1 | . 1 . . . . . Missiles Intercepted . | . . . . . . . Alert | -11 -10 -10 -9 -9 -9 -8 ------- Run | Scr Mat Min Mat Min Exi Min Peak Influence 876 | 5 461 175 876 421 . 66 Initial 341 | . 3 42 1 341 . . Average 230 | 1 194 66 385 307 . 5 Maximum Alert Level 3 | . 2 . 3 2 . . Low Security (%) 56 | 100 70 100 31 7 . 100 Level 1 21 | . 3 . 31 65 . . Level 2 14 | . 25 . 11 27 . . Level 3 7 | . . . 25 . . . Level 4 . | . . . . . . . Level 5 . | . . . . . . . High Security . | . . . . . . . Max Security . | . . . . . . . Squads Dispatched 11 | . 5 . 5 1 . . Investigation 5 | . 3 . 2 . . . Extermination . | . . . . . . . Reinforcement 5 | . 2 . 3 . . . Assault 1 | . . . . 1 . . Garrison . | . . . . . . . Intercept . | . . . . . . . Searches Triggered . | . . . . . . . Construction Impeded . | . . . . . . . Haulers Reinforced . | . . . . . . . Active Scanning Responses . | . . . . . . . Cargo Convoy Interrupts . | . . . . . . . Stealth | -11 -10 -10 -9 -9 -9 -8 --------- Run | Scr Mat Min Mat Min Exi Min Distress Signals 7 | . 4 1 2 . . . Communications Jammed . | . . . . . . . Distress Signals . | . . . . . . . Times Spotted 141 | . 31 12 45 8 39 6 Peak Tracking Total 12 | . 6 3 5 3 12 5 Tactical Retreats 15 | . 4 1 2 . 8 . Traps | -11 -10 -10 -9 -9 -9 -8 ------- Run | Scr Mat Min Mat Min Exi Min Traps Triggered 1 | . 1 . . . . . Indirectly . | . . . . . . . Trap Hack Attempts 36 | . . 33 3 . . . Triggered . | . . . . . . . Disarmed . | . . . . . . . Reprogrammed 4 | . . 3 1 . . . Reused 1 | . . . 1 . . . Traps Extracted 2 | . . 2 . . . . Installed . | . . . . . . . Triggered 1 | . . . 1 . . . Most Traps Carried 2 | . . 2 . . . . Machines | -11 -10 -10 -9 -9 -9 -8 ---------- Run | Scr Mat Min Mat Min Exi Min Machines Disabled 16 | . 2 2 2 3 7 . Max in Single Turn 2 | . 1 2 1 2 2 . Machines Sabotaged . | . . . . . . . Overloaded Fab Kills . | . . . . . . . Hacking | -11 -10 -10 -9 -9 -9 -8 --------- Run | Scr Mat Min Mat Min Exi Min Machines Accessed 24 | . 8 2 13 . 1 . Terminals 14 | . 5 . 9 . . . Fabricators . | . . . . . . . Repair Stations 3 | . 1 . 2 . . . Recycling Units 2 | . 2 . . . . . Scanalyzers 2 | . . . 2 . . . Garrison Access . | . . . . . . . Total Hacks 83 | . 26 2 54 . 1 . Successful 49 | . 11 2 35 . 1 . Failed 33 | . 14 . 19 . . . Catastrophic 2 | . 1 . 1 . . . Database Lockouts 1 | . 1 . . . . . Manual 39 | . 18 . 21 . . . Terminals 47 | . 19 . 28 . . . Fabricators . | . . . . . . . Repair Stations 14 | . 5 . 9 . . . Recycling Units 2 | . 2 . . . . . Scanalyzers 17 | . . . 17 . . . Garrison Access . | . . . . . . . Terminal Hacks 17 | . 4 2 10 . 1 . Record 1 | . . . . . 1 . Part Schematic 1 | . . . 1 . . . Robot Analysis 6 | . 1 . 5 . . . Prototype ID Bank 2 | . 1 . 1 . . . Open Door 2 | . . 2 . . . . Unreport Threat 1 | . 1 . . . . . Locate Traps 1 | . 1 . . . . . Hauler Manifests 2 | . . . 2 . . . Zone Layout 1 | . . . 1 . . . Fabricator Hacks . | . . . . . . . Repair Station Hacks 9 | . 2 . 7 . . . Scan Component 6 | . 2 . 4 . . . Repair 3 | . . . 3 . . . Recycling Unit Hacks . | . . . . . . . Scanalyzer 15 | . . . 15 . . . Insert Component 8 | . . . 8 . . . Analyze 7 | . . . 7 . . . Garrison Access Hacks . | . . . . . . . Unauthorized Hacks 8 | . 5 . 3 . . . Terminals 6 | . 3 . 3 . . . Assimilate 2 | . 1 . 1 . . . Botnet 3 | . 2 . 1 . . . Operators 1 | . . . 1 . . . Fabricators . | . . . . . . . Repair Stations . | . . . . . . . Recycling Units 2 | . 2 . . . . . Tunnel 2 | . 2 . . . . . Scanalyzers . | . . . . . . . Garrison Access . | . . . . . . . Data Cores Recovered . | . . . . . . . Used . | . . . . . . . Hacking Detections 16 | . 5 . 11 . . . Full Trace Events 4 | . 1 . 3 . . . Feedback Events . | . . . . . . . Feedback Blocked . | . . . . . . . Robot Schematics Acquired . | . . . . . . . Robots Built . | . . . . . . . Authchips . | . . . . . . . Time . | . . . . . . . Total Robot Build Rating . | . . . . . . . Part Schematics Acquired 8 | . . . 8 . . . Parts Built . | . . . . . . . Authchips . | . . . . . . . Time . | . . . . . . . Total Part Build Rating . | . . . . . . . Parts Repaired 3 | . . . 3 . . . Time 115 | . . . 115 . . . Parts Recycled . | . . . . . . . Recycled Matter . | . . . . . . . Retrieved Matter . | . . . . . . . Retrieved Components . | . . . . . . . Parts Scanalyzed 7 | . . . 7 . . . Part Schematics Acquired 7 | . . . 7 . . . Parts Damaged . | . . . . . . . Bothacking | -11 -10 -10 -9 -9 -9 -8 ------------ Run | Scr Mat Min Mat Min Exi Min Used RIF Installer . | . . . . . . . Robots Hacked 5 | . . . 1 . 4 . Non-combat 4 | . . . 1 . 3 . Combat 1 | . . . . . 1 . Robot Hacks Applied 5 | . . . 1 . 4 . parse_system 5 | . . . 1 . 4 . Relay Couplers Released . | . . . . . . . Fabnet Peak Effective % . | . . . . . . . Robots Rewired . | . . . . . . . Allies Hacked . | . . . . . . . Hacks Repelled . | . . . . . . . Allies | -11 -10 -10 -9 -9 -9 -8 -------- Run | Scr Mat Min Mat Min Exi Min Total Allies 6 | . . 2 . 4 . . Largest Group 3 | . . 2 . 3 1 . Highest-Rated Group 44 | . . 44 . 40 31 . Highest-Rated Ally 31 | . . 31 . 31 31 . Total Orders 4 | . . . . . 4 . STAY 3 | . . . . . 3 . FOLLOW 1 | . . . . . 1 . Ally Attacks 69 | . . 3 . 21 11 34 Total Damage 2085 | . . 21 . 234 125 1705 Kills 9 | . . . . 5 . 4 Allies Corrupted . | . . . . . . . Allies Melted . | . . . . . . . Turrets Deployed 1 | . . . . . . 1 Intel | -11 -10 -10 -9 -9 -9 -8 ------- Run | Scr Mat Min Mat Min Exi Min Robot Analysis Total 6 | . 1 . 5 . . . Derelict Logs Recovered 3 | . . 2 . 1 . . Drone Launches 3 | . . . . . 3 . Drone Recoveries . | . . . . . . . Exploration | -11 -10 -10 -9 -9 -9 -8 ------------- Run | Scr Mat Min Mat Min Exi Min Turns Passed 10102 | 97 2011 1363 2395 1292 2283 661 Spaces Moved 4111 | 49 803 386 1021 622 1017 213 Core 41 | 5 . . . . . 36 Treads 1079 | 44 803 147 79 . 6 . Legs 503 | . . . . . 326 177 Wheels 2488 | . . 239 942 622 685 . Hover . | . . . . . . . Flight . | . . . . . . . Fastest Speed 50 | 50 160 130 145 190 160 50 Average Speed 194 | 148 224 179 179 192 191 211 Slowest Speed 400 | 160 240 240 400 205 270 280 Overloaded Moves . | . . . . . . . Propulsion Burnouts . | . . . . . . . Robots Hopped . | . . . . . . . Cave-ins Triggered 1 | . . 1 . . . . Exploration Rate (%) 67 | 4 99 78 96 94 81 17 Regions Visited 6 Branch Regions 4 Pre-discovered Areas 3 | . 2 . . . 1 . Known Exits Taken 1 | . . . . 1 . . Unknown Exits Taken 5 | 1 1 1 1 . 1 . Scrap Searched 5 | . . 2 . 2 . 1 Spaces Dug 102 | . 24 16 23 39 . . Terrain Destroyed 237 | . 40 33 80 45 32 7 Melee 3 | . . 3 . . . . Projectile 10 | . . . . . 3 7 AOE 224 | . 40 30 80 45 29 . Terrain Rammed . | . . . . . . . Walls Destroyed . | . . . . . . . Machines Disabled . | . . . . . . . Actions | -11 -10 -10 -9 -9 -9 -8 --------- Run | Scr Mat Min Mat Min Exi Min Total 5690 | 62 930 1001 1422 691 1224 360 Wait 930 | . 35 518 208 35 50 84 Move 4105 | 48 802 385 1020 621 1016 213 Hop . | . . . . . . . Pick Up 109 | 4 22 6 28 5 31 13 Fast Attach 29 | 6 3 3 2 1 5 9 Attach 26 | . 1 4 5 . 12 4 Detach 6 | . 1 2 . . 1 2 Swap 86 | . 12 12 42 11 8 1 Drop 84 | . 8 8 31 6 27 4 Fire 262 | 4 45 27 82 12 62 30 Melee 8 | . . 3 1 . 4 . Ram . | . . . . . . . Kick . | . . . . . . . Crush 9 | . 1 . . . 8 . Escape Stasis . | . . . . . . . Rewire . | . . . . . . . Trap 36 | . . 33 3 . . . Miscellaneous . | . . . . . . . Route ------- -11/Scrapyard -10/Materials (discovered 5 exits: *Mat x3 / *Min x2) -10/Mines (discovered 2 exits: *Mat x2) -9/Materials (discovered 4 exits: [*Mat x3] / [*Min]) -9/Mines (discovered 3 exits: [*Mat x2] / *Exi) -9/Exiles (discovered 2 exits: [*Min x2]) -8/Mines History --------- Turn | Location | Event 4 | -11/Scrapyard | Discovered new exit (range 15) 98 | -11/Scrapyard | Entered Materials 350 | -10/Materials | Build established: Mutant 351 | -10/Materials | Destroyed 7 combat bots 368 | -10/Materials | Discovered new exit (range 16) 522 | -10/Materials | Discovered new exit (range 14) 725 | -10/Materials | Discovered new exit (range 8) 957 | -10/Materials | Central database locked down 1091 | -10/Materials | Discovered new exit (range 15) 1397 | -10/Materials | Discovered new exit (range 13) 2109 | -10/Materials | Entered Mines 2249 | -10/Mines | Met a Derelict who couldn't figure out how to use a Trap Extractor 2851 | -10/Mines | Learned Materials stockpile data 2860 | -10/Mines | Learned Materials trap positions 2867 | -10/Mines | Discovered new exit (range 6) 2891 | -10/Mines | Discovered new exit (range 5) 2900 | -10/Mines | Assembled infested the area 2905 | -10/Mines | Assisted by a Guerilla fighting off Assembled 3121 | -10/Mines | Crushed by falling debris 3152 | -10/Mines | Lost 3 parts (1p1n1w) 3205 | -10/Mines | Found the Drone Emporium 3211 | -10/Mines | Found Prototype Device 3211 | -10/Mines | Identified Thief Drone Bay 3312 | -10/Mines | Core integrity fell below 50% 3472 | -10/Mines | Entered Materials 3472 | -9/Materials | Evolved 2 slots: Utility x1, Weapon x1 3473 | -9/Materials | Loaded intel: 13 trap records 3869 | -9/Materials | Discovered new exit (range 16) 4049 | -9/Materials | Discovered new exit (range 13) 4432 | -9/Materials | Repaired Imp. Assault Rifle? 4484 | -9/Materials | Repaired Hrd. Light Armor Plating? 4667 | -9/Materials | Discovered new exit (range 4) 4687 | -9/Materials | Repaired Rnf. Ion Engine? 5248 | -9/Materials | Discovered new exit (range 11) 5512 | -9/Materials | Build established: Tank 5867 | -9/Materials | Entered Mines 5933 | -9/Mines | Identified exit to Exiles 5970 | -9/Mines | Found a damaged Exp. Sensor Array with a note attached 5975 | -9/Mines | Found Prototype Device 6027 | -9/Mines | Identified Exp. Sensor Array 6072 | -9/Mines | Assisted by bots powering up and referring to "LRC-V3" 6467 | -9/Mines | Discovered new exit (range 11) 6528 | -9/Mines | Discovered new exit (range 5) 6666 | -9/Mines | Build established: Mutant 6978 | -9/Mines | Build established: Tank 7070 | -9/Mines | Met a Derelict testing a Signal Generator 7159 | -9/Mines | Entered Exiles 7159 | -9/Exiles | Accompanied by 1 ally 7259 | -9/Exiles | Discovered new exit (range 15) 7295 | -9/Exiles | Met 8R-AWN 7321 | -9/Exiles | Build established: Mutant 7329 | -9/Exiles | Met EX-HEX 7389 | -9/Exiles | Met EX-BIN 7454 | -9/Exiles | Met EX-DEC 7462 | -9/Exiles | Learned location of Zion (-6) 7998 | -9/Exiles | Attacked by the Exiles 8012 | -9/Exiles | Destroyed EX-HEX 8043 | -9/Exiles | Destroyed 7 combat bots 8058 | -9/Exiles | Lost 3 parts (1u2w) 8196 | -9/Exiles | Destroyed 8R-AWN 8203 | -9/Exiles | Lost 5 parts (1p2n1u1w) 8316 | -9/Exiles | Build established: Tank 8448 | -9/Exiles | Discovered new exit (range 14) 8528 | -9/Exiles | Found 8R-AWN's Boregun 8531 | -9/Exiles | Found 8R-AWN's Armor/EX 8538 | -9/Exiles | Found AS-neutralizer No. 17b 8551 | -9/Exiles | Found Exp. Targeting Computer 8615 | -9/Exiles | Core integrity fell below 50% 8630 | -9/Exiles | Destroyed EX-DEC 8661 | -9/Exiles | Destroyed EX-BIN 8692 | -9/Exiles | Found Exp. Core Analyzer 8695 | -9/Exiles | Found Deploy-a-Sentry 9086 | -9/Exiles | Build established: Scavenger-Tank 9442 | -9/Exiles | Left Exiles lab with Deploy-a-Sentry 9442 | -9/Exiles | Entered Mines 9535 | -8/Mines | 7V-RTL came to Exiles' defense 9595 | -8/Mines | Core integrity fell below 20% 9604 | -8/Mines | DAS Turret deployed 9678 | -8/Mines | Lost 7 parts (1p2n2u2w) 9705 | -8/Mines | Allies destroyed 7V-RTL 10022 | -8/Mines | Build established: Scavenger-Mutant 10103 | -8/Mines | Destroyed by H-55 Commando with Gauss Rifle Last Messages --------------- 09865_ K-01 Serf collects debris. 09868_ Acquired 13 matter. 09869_ K-01 Serf collects debris. 09882_ Acquired 6 matter. 09882_ K-01 Serf collects debris. 09885_ =JVQ, NAYYZHMT2QCUZGTI>1B0DQM1K 09885_ K-01 Serf collects debris. 09942_ D WV: QGFWSD,1SYLX EDIPGUMHP6I|GHI 09957_ Searching scrap... 09957_ Found Transport Network Coupler. 09957_ Found 28 Matter. 09989_ K-01 Serf collects debris. 09995_ K-01 Serf cleans the Plasma Injector. 09999_ K-01 Serf collects debris. 10027_ OB1UIO7QHRX5,OPR#Z83G>&7J= 65RB& 10075_ System corrupted: Energy discharge (-120). 10085_ Penetrated by Slug. 10087_ U-05 Engineer builds a Wall. 10095_ Penetrated by Slug. 10103_ Overheating: Matter decay (-46). Map ----- +----------------------------------------------------+ | ???????????????????????????????????????????????? | | ???????????????????????????????????????????????? | | ???????????????????????????????????????????????? | | ???????????????????????????????????????????????? | | ???????????????????????????????????????????????? | | ???????????????????????????????????????????????? | | ???????????????????????????????????????????????? | | ???????????????????????????????????????????????? | | ???????????????????????????????????????????????? | | ???????????????????????????????????????????????? | | ????????????????????? ???????????????????????? | | ??????????????????? ???????????????????????? | | ?????????????????? ???????????????????????? | | ?????????????????? ???????????????????????? | | ??????????????????# ???????????????????????? | | ?????????????????## * ???????????????????????? | | ????????????????## % ##?????????????????????? | | ???????????????## ! u##?????????????????????? | | ??????????????? ##????????????????????? | | ????????????????# h ;#????????????????????? | | ?????????????????# #????????????????????? | | ???????????????????# #????????????????????? | | ????????????????????# #####????????????????? | | ?????????????????????# ##???????????????? | | ????????????????????## ###??????????????? | | ????????????????????# @##### # #??????????????? | | ????????????????????# ##### # #??????????????? | | ????????????????????# % #%###????????????? | | ????????????????????# #####t#####????????????? | | ????????????????????## ### ## ##????????????? | | ?????????????????????# ## ## % = *#####????????? | | ?????????????????????# # #?# ! ###????????? | | ?????????????????????# ##??# ##????????? | | ?????????????????????# ##### ### ###???????? | | ????????????????????## # #####t # #???????? | | ????????????????????###### ###?# # ####??????? | | ?????????????????????????# #??# ## # #??????? | | ?????????????????????????# #####?# ###??????? | | ?????????????????????????# !%#??## ## #??????? | | ?????????????????????????#### #??#####?# #?????? | | ??????????????????????????# # ########??# #????? | | ?????????????????????????# ## #???# #???? | | ?????????????????????????#??######## #????# #??? | | ???????????????????????????????????# #?????# #?? | | ???????????????????????????????????# #???????#?? | | ???????????????????????????????????# #?????????? | | ?????????????????????????????????? ????????? | | ?????????????????????????????????# ??????? | | ?????????????????????????????????# """ """ ????? | | ?????????????????????????????????# """ """ ""??? | +----------------------------------------------------+ Best States ------------- Heat Dissipation 28 Energy Generation 19 Energy Capacity 310 Matter Stores 300 Matter Capacity 300 Sight Range 16 Robot Scan Range 20 Terrain Scan Range 16 Terrain Scan Density 10 Armor Coverage 450 Evasion (%) 55 Targeting Accuracy 12 Core Analysis 8 Recoil Reduction 2 Item Schematics ----------------- Huge Storage Unit | -9/Materials | Hacked Transport Network Coupler | -9/Materials | Scanalyzed Imp. Terrain Scanner | -9/Materials | Scanalyzed Cooling System | -9/Materials | Scanalyzed Imp. Datajack | -9/Materials | Scanalyzed Hcp. Matter Pod | -9/Materials | Scanalyzed Mni. Grenade Launcher | -9/Materials | Scanalyzed Imp. Assault Rifle | -9/Materials | Scanalyzed Robot Schematics ------------------ None Fabricated ------------ Nothing Alien Tech Used ----------------- None Achievements -------------- None Challenges ------------ None Game ------ Seed CommArmoredDesublimator Manual? 0 Play Time 01:14:48 Cumulative 346.1 hours Start 2022.12.02 @ 19:43:27 End 2022.12.03 @ 11:38:25 Sessions 3 Manual Loads 0 Difficulty Rogue Special Mode None Game No. 161 Rogue 161 Adventurer 0 Explorer 0 Win Type - Total 8 Types 5/0/1/1/0/0/0/1/0 Lore% 88 Gallery% 92 Achievement% 70 Wizard Run 0 Options --------- ASCII 0 Keyboard 1 Movement Vi Keybinds 0 Fullscreen 2 Font 18/Cog Map View 76x50 Tactical HUD 1 Map Filters NONE Filters NONE Steam 0 RUN: 84e0756d-c8c2-4852-b5ad-4dab17e0678e